bitfinex/quotes_ETHUSD_20240730
["timestamp","ask_amount","ask_price","bid_price","bid_amount"]
[1722320343791,2.40754,3322.9,3322.7,35.0]
[1722320343997,2.43415719,3322.9,3322.7,35.0]
[1722320344187,0.02661719,3322.9,3322.7,35.0]
[1722320344500,2.40739,3323.1,3322.7,35.0]
[1722320344705,0.02661719,3322.8,3322.7,35.0]
[1722320344900,2.40747,3323.0,3322.7,35.0]
[1722320345288,0.02661719,3322.9,3322.7,35.0]
[1722320345613,2.43415719,3322.9,3322.7,35.0]
[1722320346776,2.4076,3322.8,3322.7,35.0]
[1722320346978,5.29937572,3322.8,3322.7,35.0]
[1722320347177,2.4078,3322.6,3321.9,2.40824]
[1722320347475,2.40782,3322.5,3322.0,2.3111]
[1722320347669,2.43448925,3322.5,3322.1,35.0]
[1722320347912,2.40804,3322.2,3322.1,35.0]
[1722320348406,2.43470925,3322.2,3322.1,35.0]
[1722320349574,4.84274925,3322.2,3322.1,35.0]
[1722320350206,7.78262417,3322.2,3322.1,35.0]
[1722320350877,7.78262417,3322.2,3320.9,2.2519]
[1722320350878,2.40862,3321.4,3320.9,2.2519]
[1722320351277,2.40862,3321.4,3321.2,1.001]
[1722320351478,2.40847,3321.6,3321.3,35.0]
[1722320352708,2.40826,3321.9,3321.3,35.0]
[1722320352893,2.40826,3321.9,3321.4,6.43751288]
[1722320353295,7.37,3322.0,3321.6,1.001]
[1722320353635,2.40798,3322.3,3321.8,1.001]
[1722320353929,2.40784,3322.5,3321.8,1.001]
[1722320353930,2.40804,3322.2,3321.8,1.001]
[1722320354497,2.40804,3322.2,3321.9,35.0]
[1722320355096,2.40811,3322.1,3321.9,35.0]
[1722320355298,7.37,3322.6,3321.9,35.0]
[1722320355299,9.77781,3322.6,3321.9,35.0]
[1722320355626,4.81636,3322.0,3321.9,35.0]
[1722320359661,2.40867,3321.4,3320.8,2.4505]
[1722320359822,2.40865,3321.4,3320.8,2.936466]
[1722320360152,2.40865,3321.4,3321.3,35.0]
[1722320363059,2.40848,3321.6,3321.3,35.0]
[1722320365146,2.40855,3321.5,3321.3,35.0]
[1722320365545,2.40862,3321.4,3321.3,35.0]
[1722320367570,5.534117,3321.4,3321.3,35.0]
[1722320369569,4.81724,3321.4,3321.3,35.0]
[1722320372593,2.40862,3321.4,3321.3,35.0]
[1722320375208,4.81724,3321.4,3321.3,35.0]
[1722320376176,7.29574,3321.4,3321.3,35.0]
[1722320380275,2.40862,3321.4,3321.3,35.0]
[1722320384091,4.81724,3321.4,3321.3,35.0]
[1722320387355,4.82724,3321.4,3321.3,35.0]
[1722320392890,5.309964,3321.4,3321.3,35.0]
[1722320393091,2.40888,3321.1,3320.5,1.001]
[1722320393661,2.40888,3321.1,3320.8,35.0]
[1722320395017,2.40898,3320.9,3320.8,35.0]
[1722320401081,4.81796,3320.9,3320.8,35.0]
[1722320401467,6.26716758,3320.9,3320.8,35.0]
[1722320401872,6.5561006,3320.9,3320.8,35.0]
[1722320402493,2.40936,3320.4,3320.0,2.2894]
[1722320402983,3.3979,3320.7,3320.1,35.0]
[1722320403175,0.33979,3320.6,3320.1,35.0]
[1722320403381,2.4095,3320.2,3320.1,35.0]
[1722320404003,2.40937,3320.4,3320.1,35.0]
[1722320405005,2.40913,3320.7,3320.2,3.4075]
[1722320405174,2.40913,3320.7,3320.2,6.45651288]
[1722320405577,2.4092,3320.6,3320.2,3.4075]
[1722320405871,7.37,3320.9,3320.4,1.001]
[1722320406085,7.37,3320.9,3320.6,1.001]
[1722320406284,7.37,3320.9,3320.8,1.001]
[1722320406583,2.40878,3321.2,3320.8,36.001]
[1722320407293,2.40878,3321.2,3320.8,35.0]
[1722320407984,2.40884,3321.1,3320.8,35.0]
[1722320408593,2.40892,3321.0,3320.8,35.0]
[1722320412532,2.40898,3320.9,3320.8,35.0]
[1722320416212,2.40898,3320.9,3320.3,3.0]
[1722320416563,2.40898,3320.9,3320.2,3.0]
[1722320416743,2.40898,3320.9,3320.4,35.0]
[1722320417509,2.40905,3320.8,3320.4,35.0]
[1722320418778,2.40878,3321.2,3320.5,2.3326]
[1722320419095,2.40878,3321.2,3320.6,3.04901288]
[1722320419347,0.01,3321.4,3320.6,3.10923803]
[1722320419535,0.01,3321.4,3320.7,7.86568]
[1722320419720,0.01,3321.4,3320.8,2.409]
[1722320419920,0.01,3321.4,3320.9,4.86558]
[1722320420136,0.01,3321.4,3321.0,0.486558]
[1722320420535,0.01,3321.4,3321.1,2.40878]
[1722320420933,0.01,3321.4,3321.2,35.0]
[1722320427543,0.01,3321.4,3321.2,37.40875]
[1722320427898,0.01,3321.4,3321.3,4.85289]
[1722320428056,0.01,3321.4,3321.3,7.90190288]
[1722320428254,0.01,3321.4,3321.3,5.49321288]
[1722320428636,0.01,3321.4,3321.3,7.90190288]
[1722320430177,0.01,3321.4,3321.3,10.56338]
[1722320430350,0.01,3321.4,3321.3,45.56338]
[1722320431808,0.01,3321.4,3321.3,42.85289]
[1722320432851,0.01,3321.4,3321.3,45.26158]
[1722320433920,0.01,3321.4,3321.3,42.85289]
[1722320434123,0.01,3321.4,3321.3,45.90190288]
[1722320437829,0.01,3321.4,3321.3,48.31059288]
[1722320438062,0.01,3321.4,3321.3,45.90190288]
[1722320438416,0.01,3321.4,3321.3,48.31059288]
[1722320439984,2.3263,3322.7,3322.1,2.40804]
[1722320440275,2.40702,3323.7,3321.5,2.40852]
[1722320440276,2.3287,3323.0,3322.2,2.648784]
[1722320440422,2.3287,3323.0,3322.3,3.06018921]
[1722320440627,2.3287,3323.0,3322.4,35.0]
[1722320440883,7.37,3323.2,3322.5,0.0601892]
[1722320441089,2.4074,3323.1,3322.4,2.40789]
[1722320441246,2.40749,3323.0,3322.3,3.0]
[1722320441431,2.40749,3323.0,3322.6,35.0]
[1722320441783,2.4074,3323.1,3322.6,35.0]
[1722320442322,2.40758,3322.9,3322.6,35.0]
[1722320442626,2.4612,3323.0,3322.6,35.0]
[1722320443389,9.77731,3323.2,3322.6,35.0]
[1722320443727,2.4074,3323.1,3322.6,35.0]
[1722320445127,7.37,3323.2,3322.6,37.261]
[1722320445642,7.37,3323.2,3322.6,39.66874]
[1722320446241,7.37,3323.2,3322.6,37.261]
[1722320449446,4.72644,3323.3,3322.6,37.261]
[1722320449637,2.40724,3323.3,3322.6,40.47597416]
[1722320449844,4.89855,3323.5,3322.7,2.40765]
[1722320451158,2.4914,3323.5,3322.8,2.4076]
[1722320451370,7.37,3323.7,3322.8,5.894158]
[1722320451674,2.40703,3323.6,3322.9,2.46769926]
[1722320451841,2.40703,3323.6,3322.9,5.46769926]
[1722320453174,7.37,3323.7,3323.0,2.40745]
[1722320453359,7.37,3323.7,3323.1,35.0]
[1722320453561,9.77696,3323.7,3323.1,35.0]
[1722320455274,2.4069,3323.8,3323.2,2.3799]
[1722320455442,2.4069,3323.8,3323.2,2.44007653]
[1722320455643,2.40678,3324.0,3323.2,4.84738653]
[1722320455866,2.40681,3323.9,3323.3,35.06017626]
[1722320457352,7.06338,3324.1,3323.3,35.0]
[1722320457678,0.02660281,3323.8,3323.3,35.0]
[1722320457840,2.40668,3324.1,3323.3,35.0]
[1722320458057,0.02732256,3324.0,3323.3,35.0]
[1722320458275,0.02732256,3324.0,3323.4,3.04901288]
[1722320458684,2.40683,3323.9,3323.2,4.78721]
[1722320458861,2.40683,3323.9,3323.5,35.0]
[1722320459062,2.43420462,3323.9,3323.5,35.0]
[1722320459698,2.40695,3323.7,3323.5,35.0]
[1722320459997,2.40702,3323.6,3323.5,35.0]
[1722320460312,2.43441355,3323.6,3323.5,35.0]
[1722320463086,2.43441355,3323.6,3322.9,5.2723]
[1722320463595,2.43441355,3323.6,3323.0,35.0]
[1722320463797,2.43441355,3323.6,3323.1,3.0]
[1722320463998,2.40711,3323.5,3323.1,3.0]
[1722320464197,2.40711,3323.5,3322.9,5.2723]
[1722320464362,0.02739355,3323.4,3322.9,6.0889528]
[1722320464691,0.02739355,3323.4,3323.2,35.0]
[1722320465073,2.40711,3323.5,3323.2,35.0]
[1722320465272,0.02739355,3323.3,3323.2,35.0]
[1722320465486,2.407,3323.7,3323.2,38.0]
[1722320465693,2.407,3323.7,3323.2,35.0]
[1722320466174,0.02739355,3323.6,3323.2,35.0]
[1722320466885,0.02739355,3323.6,3323.3,2.4056]
[1722320467085,0.02739355,3323.6,3323.3,4.8729958]
[1722320467324,9.77661,3324.2,3323.5,0.999]
[1722320467630,2.40647,3324.4,3323.9,0.999]
[1722320467991,2.40644,3324.4,3324.1,0.999]
[1722320468313,2.40644,3324.4,3324.2,35.0]
[1722320468478,0.02723736,3324.3,3324.2,35.0]
[1722320469607,2.43375736,3324.3,3324.2,35.0]
[1722320469814,2.9177771,3324.3,3324.2,35.0]
[1722320470028,5.3242971,3324.3,3324.2,35.0]
[1722320470227,7.6405971,3324.3,3324.2,35.0]
[1722320470735,2.8275571,3324.3,3323.7,3.0]
[1722320470876,2.40666,3324.1,3323.0,4.82601]
[1722320471205,2.40666,3324.1,3323.1,38.0]
[1722320471414,2.40695,3323.7,3323.1,38.0]
[1722320471930,2.3163,3324.3,3323.1,35.0]
[1722320471931,2.40703,3323.6,3323.1,35.0]
[1722320472079,2.40718,3323.4,3323.1,35.0]
[1722320472275,2.40721,3323.4,3323.1,35.0]
[1722320472696,0.02723736,3323.3,3323.1,35.0]
[1722320473703,2.4071,3323.5,3323.1,35.0]
[1722320474020,0.02723736,3323.2,3323.1,35.0]
[1722320474220,2.4071,3323.5,3323.1,35.0]
[1722320474626,2.43441736,3323.4,3323.1,35.0]
[1722320480225,0.02723736,3323.4,3323.1,35.0]
[1722320480831,2.40701,3323.7,3323.1,35.0]
[1722320481038,0.02726103,3323.3,3323.1,35.0]
[1722320481218,2.40689,3323.8,3323.2,3.04901288]
[1722320481417,2.40689,3323.8,3323.1,35.0]
[1722320481418,0.02726103,3323.2,3323.1,35.0]
[1722320481620,2.40689,3323.8,3323.1,35.0]
[1722320482115,0.02727049,3323.7,3323.1,35.0]
[1722320482319,0.02727049,3323.7,3323.2,4.83706904]
[1722320482518,2.40672,3324.1,3323.3,3.04901288]
[1722320482968,2.43405309,3324.0,3323.3,3.04901288]
[1722320484317,2.40681,3323.9,3323.3,3.04901288]
[1722320484522,0.02735096,3323.8,3323.3,3.04901288]
[1722320484771,2.40688,3323.8,3323.3,3.04901288]
[1722320484979,0.02735096,3323.7,3323.2,2.3696]
[1722320485263,0.02735096,3323.7,3323.4,35.0]
[1722320485666,2.40688,3323.8,3323.4,35.0]
[1722320486023,0.02735096,3323.7,3323.4,35.0]
[1722320486451,2.40688,3323.8,3323.4,35.0]
[1722320486646,2.40673,3324.0,3323.4,35.0]
[1722320486827,0.02735096,3323.7,3323.4,35.0]
[1722320487041,2.40673,3324.0,3323.4,35.0]
[1722320487223,2.40667,3324.1,3323.4,40.45618288]
[1722320487428,2.40657,3324.3,3323.4,40.45618288]
[1722320487429,0.02735096,3323.9,3323.4,40.45618288]
[1722320487631,0.02733202,3324.0,3323.4,40.45618288]
[1722320487828,2.4066,3324.2,3323.4,40.45618288]
[1722320488075,0.02733202,3323.9,3323.6,2.40701]
[1722320488287,2.40645,3324.4,3323.7,0.30688569]
[1722320488491,0.02733202,3323.8,3323.7,3.30688569]
[1722320488658,2.40653,3324.3,3323.7,3.30688569]
[1722320488859,2.40645,3324.4,3323.7,3.30688569]
[1722320489343,0.02733202,3324.3,3323.7,3.30688569]
[1722320489689,0.02733202,3324.3,3323.8,0.57138957]
[1722320489846,0.02733202,3324.3,3323.9,2.4068]
[1722320490204,0.02767276,3324.2,3323.9,5.4068]
[1722320490548,9.77631,3324.6,3323.9,5.4068]
[1722320490746,0.02767276,3324.5,3323.9,5.4068]
[1722320491577,0.02767276,3324.5,3323.9,3.92500523]
[1722320491781,0.02767276,3324.5,3324.0,35.0]
[1722320491943,2.43406276,3324.5,3324.0,35.0]
[1722320493079,0.02767276,3324.5,3324.0,35.0]
[1722320493480,2.40625,3324.7,3324.0,35.0]
[1722320493784,2.4063,3324.6,3324.0,35.0]
[1722320493994,2.4066,3324.2,3324.0,35.0]
[1722320494153,2.40666,3324.1,3324.0,35.0]
[1722320494853,0.02802289,3324.1,3324.0,35.0]
[1722320495388,2.40632,3324.6,3324.0,35.0]
[1722320495600,2.43440289,3324.5,3324.0,35.0]
[1722320496670,2.43440289,3324.5,3324.1,0.06016541]
[1722320496671,0.02802289,3324.5,3324.1,0.06016541]
[1722320496872,0.02802289,3324.5,3324.1,3.06016541]
[1722320497171,0.02789989,3324.4,3324.1,3.0]
[1722320497388,0.02789989,3324.4,3324.0,2.40669]
[1722320497389,2.2749,3324.7,3324.2,35.0]
[1722320497579,0.02798032,3324.6,3324.2,35.0]
[1722320498963,2.43431032,3324.6,3324.2,35.0]
[1722320499474,0.02798032,3324.6,3324.2,35.0]
[1722320499673,0.02798032,3324.6,3324.3,6.04901288]
[1722320499978,0.02809385,3324.5,3324.3,6.04901288]
[1722320500168,7.37180357,3325.0,3324.3,6.04901288]
[1722320500373,0.02812697,3324.9,3324.3,6.04901288]
[1722320501381,0.02812697,3324.9,3324.5,2.40637]
[1722320501595,0.02812697,3324.9,3324.6,0.240637]
[1722320502908,0.02812697,3324.9,3324.3,5.40652]
[1722320503130,0.02812697,3324.9,3324.7,35.0]
[1722320506114,0.02812697,3324.9,3324.7,39.86261]
[1722320506644,0.00180357,3325.0,3324.8,3.0]
[1722320507024,0.02854322,3324.9,3324.8,3.0]
[1722320507227,0.02854322,3324.9,3324.8,8.51531363]
[1722320507442,0.02854322,3324.9,3324.8,6.10916363]
[1722320507743,0.00180357,3325.0,3324.8,6.10916363]
[1722320508348,0.00180357,3325.0,3324.9,2.40608]
[1722320509540,0.00180357,3325.0,3324.8,6.04901288]
[1722320509739,0.00180357,3325.0,3324.9,1.29379216]
[1722320510919,0.0305454,3325.0,3324.9,3.69987216]
[1722320511115,0.00180357,3325.0,3324.9,38.69987216]
[1722320511318,0.00180357,3325.0,3324.9,41.69987216]
[1722320518146,0.00180357,3325.0,3324.9,39.29379216]
[1722320520324,0.00180357,3325.0,3324.9,41.69987216]
[1722320521038,0.00180357,3325.0,3324.9,44.10595216]
[1722320521363,0.00180357,3325.0,3324.9,46.60275216]
[1722320521666,7.37,3325.8,3325.4,2.40565]
[1722320521832,2.40515,3326.2,3325.4,2.40565]
[1722320522028,0.0290681,3325.7,3325.4,2.40565]
[1722320522229,2.40515,3326.2,3325.4,2.40565]
[1722320522761,2.43447719,3326.1,3325.4,2.40565]
[1722320522950,2.43447719,3326.1,3325.4,3.186798]
[1722320523143,2.43447719,3326.1,3325.5,3.0]
[1722320523765,0.02925719,3326.1,3325.6,35.0]
[1722320523936,2.43447719,3326.1,3325.6,35.0]
[1722320525044,2.40529,3326.0,3325.6,35.0]
[1722320525457,2.40514,3326.2,3325.6,35.0]
[1722320525680,0.02925719,3325.9,3325.6,38.04901288]
[1722320525883,2.40514,3326.2,3325.6,38.04901288]
[1722320526061,0.02925719,3325.8,3325.6,38.04901288]
[1722320526261,2.40514,3326.2,3325.6,38.04901288]
[1722320526498,0.02925719,3325.7,3325.6,42.85159288]
[1722320526703,7.37,3326.3,3325.8,2.40541]
[1722320526895,7.37,3326.3,3325.9,2.645891]
[1722320527197,0.02855276,3326.2,3325.9,2.645891]
[1722320527363,7.37,3326.3,3326.0,3.0]
[1722320527564,0.02855276,3326.2,3326.1,35.0]
[1722320527778,0.145148,3326.4,3326.1,35.0]
[1722320527973,0.145148,3326.4,3326.1,38.04901288]
[1722320527974,0.02855276,3326.3,3326.1,38.04901288]
[1722320528384,0.14057376,3326.3,3326.1,38.04901288]
[1722320536946,0.14057376,3326.3,3326.2,0.998]
[1722320537493,0.14057376,3326.3,3326.2,35.998]
[1722320537919,0.14057376,3326.3,3326.2,40.80828]
[1722320538095,0.14057376,3326.3,3326.2,46.85729288]
[1722320538518,0.112021,3326.3,3326.2,46.85729288]
[1722320538904,0.01563976,3326.3,3326.2,46.85729288]
[1722320539219,0.01563976,3326.3,3326.2,49.26243288]
[1722320539541,0.01563976,3326.3,3326.2,51.66083288]
[1722320539916,0.01563976,3326.3,3326.2,51.96263288]
[1722320540112,7.37,3327.3,3327.1,2.40448]
[1722320540322,2.3521,3327.9,3326.3,0.3018]
[1722320540323,2.3521,3327.9,3327.2,3.642868]
[1722320540840,2.40399,3327.8,3327.2,1.238448]
[1722320541002,3.40215,3327.6,3327.3,35.0]
[1722320541202,4.75608,3327.9,3327.3,35.0]
[1722320541203,2.40427,3327.4,3327.3,35.0]
[1722320541441,2.40419,3327.6,3327.3,35.0]
[1722320541863,4.75607,3327.9,3327.3,35.0]
[1722320542003,4.75602,3327.9,3327.3,35.0]
[1722320542207,2.40399,3327.8,3327.3,35.0]
[1722320542424,7.37,3328.0,3327.3,35.0]
[1722320542425,9.77385,3328.0,3327.3,35.0]
[1722320542624,2.40385,3328.0,3327.3,35.0]
[1722320542827,2.40393,3327.9,3327.3,35.0]
[1722320543464,2.40399,3327.8,3327.3,35.0]
[1722320543639,2.43111108,3327.8,3327.3,35.0]
[1722320543970,2.40399,3327.8,3327.3,35.0]
[1722320544131,0.02712108,3327.7,3327.3,35.0]
[1722320544631,2.40377,3328.1,3327.3,37.40433]
[1722320544839,0.02712108,3328.0,3327.3,37.40433]
[1722320545236,0.02712108,3328.0,3327.4,2.46437255]
[1722320545951,2.40377,3328.1,3327.4,2.46437255]
[1722320546311,2.40364,3328.3,3327.4,2.46437255]
[1722320546509,2.40363,3328.3,3327.6,2.40412]
[1722320546736,2.40363,3328.3,3327.4,3.45752116]
[1722320546737,0.02712108,3328.2,3327.4,3.45752116]
[1722320546919,2.43083108,3328.2,3327.4,3.45752116]
[1722320547326,2.40377,3328.1,3327.4,1.05325116]
[1722320548029,2.40377,3328.1,3327.4,3.45752116]
[1722320548232,2.40363,3328.3,3327.4,3.45752116]
[1722320548432,2.43082108,3328.2,3327.4,3.45752116]
[1722320548948,2.40382,3328.1,3327.4,1.05325116]
[1722320549157,2.40382,3328.1,3327.3,39.72103]
[1722320550016,0.48511211,3328.2,3327.4,2.40426]
[1722320550349,0.02712108,3328.1,3327.4,2.40426]
[1722320550744,0.48511211,3328.2,3327.4,2.40426]
[1722320551249,0.48511211,3328.2,3327.3,35.0]
[1722320551250,2.40385,3328.0,3327.3,35.0]
[1722320551974,0.02712108,3327.9,3327.3,37.40435]
[1722320552339,2.40385,3328.0,3327.3,37.40435]
[1722320552649,0.02712108,3327.9,3327.3,35.0]
[1722320553155,2.40385,3328.0,3327.3,37.40433]
[1722320553553,0.02712108,3327.9,3327.3,37.40433]
[1722320554053,2.40385,3328.0,3327.3,37.40433]
[1722320554351,2.40385,3328.0,3327.3,35.0]
[1722320554558,0.02712108,3327.9,3327.3,35.0]
[1722320555055,2.40385,3328.0,3327.3,37.40434]
[1722320555459,0.02712108,3327.9,3327.3,35.0]
[1722320555619,2.40405,3327.8,3327.3,35.0]
[1722320556445,2.40406,3327.7,3327.3,35.0]
[1722320556762,2.3236,3327.5,3326.3,2.40506]
[1722320557058,2.40449,3327.1,3326.3,2.40506]
[1722320557242,2.40449,3327.1,3326.4,35.0]
[1722320558051,2.40464,3326.9,3326.4,35.0]
[1722320559030,2.40481,3326.7,3326.4,35.0]
[1722320559234,2.40464,3326.9,3326.4,35.0]
[1722320559429,0.02679957,3326.8,3326.4,35.0]
[1722320560226,0.02679957,3326.8,3326.5,3.0]
[1722320561237,2.43152957,3326.8,3326.5,3.0]
[1722320561562,2.40479,3326.7,3326.5,3.0]
[1722320562088,2.40479,3326.7,3326.4,35.0]
[1722320562628,2.40464,3326.9,3326.4,35.0]
[1722320562818,0.02669553,3326.8,3326.4,35.0]
[1722320565267,0.02669553,3326.8,3326.1,2.40521]
[1722320565480,0.02669553,3326.8,3326.1,2.945731]
[1722320565645,0.02669553,3326.8,3326.2,40.40514]
[1722320565843,2.40457,3327.0,3326.2,40.40514]
[1722320566384,2.40443,3327.2,3326.4,2.40495]
[1722320566555,2.40453,3327.1,3326.4,2.40495]
[1722320566946,0.02664351,3327.0,3326.5,35.0]
[1722320567148,2.40453,3327.1,3326.5,35.0]
[1722320568587,2.40464,3326.9,3326.5,35.0]
[1722320569368,0.0266908,3326.8,3326.5,35.0]
[1722320569696,2.40464,3326.9,3326.5,35.0]
[1722320569854,2.40456,3327.0,3326.5,35.0]
[1722320570055,0.0266908,3326.9,3326.5,35.0]
[1722320570267,2.40443,3327.2,3326.6,0.06011421]
[1722320570693,9.6936,3327.5,3326.6,0.997]
[1722320570694,2.40449,3327.1,3326.6,0.997]
[1722320570910,2.40457,3327.0,3326.6,0.997]
[1722320571078,2.40457,3327.0,3326.5,35.0]
[1722320571281,0.02660092,3326.9,3326.5,35.0]
[1722320571669,2.40457,3327.0,3326.5,35.0]
[1722320572064,0.02660092,3326.9,3326.5,35.0]
[1722320572517,2.40457,3327.0,3326.5,35.0]
[1722320572862,0.02660092,3326.9,3326.5,35.0]
[1722320573273,2.40457,3327.0,3326.5,35.0]
[1722320573475,0.02660092,3326.8,3326.5,35.0]
[1722320573728,0.02655835,3326.9,3326.5,35.0]
[1722320573911,2.40457,3327.0,3326.5,35.0]
[1722320574111,2.40483,3326.7,3326.5,35.0]
[1722320574481,0.02655835,3326.6,3326.5,35.0]
[1722320574978,2.40483,3326.7,3326.5,35.0]
[1722320575203,0.02655835,3326.6,3326.5,35.0]
[1722320575407,2.40483,3326.7,3326.5,35.0]
[1722320575612,0.02655835,3326.6,3326.5,35.0]
[1722320575914,2.40483,3326.7,3326.5,35.0]
[1722320576274,0.02655835,3326.6,3326.5,35.0]
[1722320576673,2.40483,3326.7,3326.5,35.0]
[1722320577106,0.02655835,3326.6,3326.5,35.0]
[1722320577620,2.40483,3326.7,3326.5,35.0]
[1722320577791,0.02655835,3326.6,3326.5,35.0]
[1722320577994,2.40483,3326.7,3326.5,35.0]
[1722320578204,0.02655835,3326.6,3326.5,35.0]
[1722320578402,2.40483,3326.7,3326.5,35.0]
[1722320578742,0.02655835,3326.6,3326.5,35.0]
[1722320579036,2.40483,3326.7,3326.5,35.0]
[1722320579244,0.02655835,3326.6,3326.5,35.0]
[1722320579531,2.40483,3326.7,3326.5,35.0]
[1722320580035,0.02655835,3326.6,3326.5,35.0]
[1722320580216,2.40483,3326.7,3326.5,35.0]
[1722320580404,0.02655835,3326.6,3326.5,35.0]
[1722320580604,2.40483,3326.7,3326.5,35.0]
[1722320580810,0.02655835,3326.6,3326.5,35.0]
[1722320580990,2.40483,3326.7,3326.5,35.0]
[1722320581190,0.02655835,3326.6,3326.5,35.0]
[1722320581391,4.8097,3326.6,3326.5,35.0]
[1722320581591,5.55745835,3326.6,3326.5,35.0]
[1722320581912,2.40493,3326.5,3325.5,3.4026]
[1722320582127,2.40505,3326.4,3325.6,2.40557]
[1722320582331,2.43152322,3326.4,3325.7,35.997]
[1722320582850,0.02647322,3326.4,3326.1,0.997]
[1722320583151,2.40466,3326.9,3326.1,0.997]
[1722320583152,2.40486,3326.6,3326.1,1.566964]
[1722320583361,2.40475,3326.8,3326.1,0.997]
[1722320583507,2.40466,3326.9,3326.2,35.0]
[1722320583508,0.02647322,3326.5,3326.2,35.0]
[1722320583871,0.02647322,3326.4,3326.2,35.0]
[1722320584462,0.02647322,3326.3,3326.2,35.0]
[1722320584603,4.72497,3327.0,3326.2,37.40514]
[1722320584604,7.12958,3327.0,3326.2,37.40514]
[1722320584803,0.02647322,3326.9,3326.3,0.997]
[1722320585056,2.40457,3327.0,3326.5,0.997]
[1722320585473,7.37,3327.1,3326.6,35.0]
[1722320586007,7.37,3327.1,3326.7,0.06011547]
[1722320586314,7.37,3327.1,3326.7,9.51088835]
[1722320586515,7.37,3327.1,3326.8,0.06011123]
[1722320586816,7.37,3327.1,3326.8,35.06011123]
[1722320587920,7.37,3327.1,3326.8,35.0]
[1722320589146,2.40445,3327.2,3326.8,35.0]
[1722320589351,2.40431,3327.4,3326.8,35.0]
[1722320590630,2.40422,3327.5,3326.8,35.0]
[1722320590861,2.43243212,3327.5,3326.8,38.04901288]
[1722320591470,2.40428,3327.4,3326.8,38.04901288]
[1722320592320,3.2752,3327.6,3326.8,38.04901288]
[1722320592586,10.77103,3327.8,3327.0,2.40455]
[1722320592776,10.77103,3327.8,3327.1,0.06010536]
[1722320592921,2.43069878,3327.7,3327.0,2.40455]
[1722320593120,2.43069878,3327.7,3327.2,35.0]
[1722320593121,2.40415,3327.6,3327.2,35.0]
[1722320593324,2.40421,3327.5,3327.2,35.0]
[1722320593761,2.40406,3327.7,3327.2,35.0]
[1722320593762,0.02663878,3327.4,3327.2,35.0]
[1722320594265,0.997,3327.6,3327.2,35.0]
[1722320594471,0.02668132,3327.3,3327.2,35.0]
[1722320594677,0.997,3327.6,3327.2,35.0]
[1722320594837,0.02668132,3327.3,3327.2,35.0]
[1722320596354,2.40421,3327.5,3327.2,35.0]
[1722320596555,0.02665295,3327.3,3327.2,35.0]
[1722320596766,2.40421,3327.5,3327.2,35.0]
[1722320596975,0.02665295,3327.3,3327.2,35.0]
[1722320597180,2.40421,3327.5,3327.2,35.0]
[1722320597699,0.02665295,3327.4,3327.2,35.0]
[1722320598067,0.02665295,3327.4,3326.8,2.40471]
[1722320598273,0.02665295,3327.4,3326.9,2.4647]
[1722320598509,3.40106,3327.7,3327.0,35.0]
[1722320598858,0.02665295,3327.6,3327.0,37.40453]
[1722320600496,2.43078295,3327.6,3327.0,35.0]
[1722320600934,2.40413,3327.6,3327.0,35.0]
[1722320602471,0.997,3327.7,3327.0,37.40456]
[1722320602676,0.02672862,3327.6,3327.0,40.45357288]
[1722320608171,0.02672862,3327.6,3327.1,0.06010724]
[1722320608514,0.02672862,3327.6,3327.1,2.46458724]
[1722320608715,2.40399,3327.8,3327.1,2.46458724]
[1722320608970,0.02672862,3327.5,3327.1,2.46458456]
[1722320609155,2.40399,3327.8,3327.1,2.46458456]
[1722320609455,2.40399,3327.8,3327.0,35.0]
[1722320609456,0.02691305,3327.4,3327.0,2.40456]
[1722320609624,2.40407,3327.7,3327.0,5.985175]
[1722320609825,0.02691305,3327.3,3327.0,5.40456]
[1722320610045,2.40407,3327.7,3327.2,35.0]
[1722320610452,2.40419,3327.6,3327.2,35.0]
[1722320610963,2.40421,3327.5,3327.2,35.0]
[1722320613373,2.40435,3327.3,3327.2,35.0]
[1722320614302,4.85727,3327.4,3327.2,35.0]
[1722320616670,0.02691305,3327.3,3327.2,35.0]
[1722320617009,6.42073135,3327.3,3327.2,35.0]
[1722320617306,2.40466,3326.9,3326.3,2.3102]
[1722320617809,2.40466,3326.9,3326.8,35.0]
[1722320621261,5.80632,3326.9,3326.8,35.0]
[1722320621456,8.873352,3326.9,3326.8,35.0]
[1722320621811,8.90026505,3326.9,3326.8,35.0]
[1722320621955,2.40481,3326.7,3326.0,3.0]
[1722320622157,3.40181,3326.7,3325.8,3.0]
[1722320622397,2.43171847,3326.6,3325.9,0.87512]
[1722320622562,0.02681847,3326.6,3326.1,35.0]
[1722320622763,2.40475,3326.8,3326.2,3.0]
[1722320623211,2.40485,3326.6,3326.0,3.0]
[1722320623375,2.40485,3326.6,3326.3,35.0]
[1722320624007,2.40493,3326.5,3326.3,35.0]
[1722320624590,2.405,3326.4,3326.3,35.0]
[1722320624801,2.4317097,3326.4,3326.3,35.0]
[1722320626225,7.3310097,3326.4,3326.3,35.0]
[1722320629201,2.40508,3326.3,3325.9,3.0]
[1722320629397,4.9260097,3326.4,3325.6,3.0]
[1722320629398,2.5210097,3326.4,3325.6,3.0]
[1722320629602,0.02661983,3326.2,3326.0,35.0]
[1722320629840,2.40487,3326.6,3326.0,35.0]
[1722320630218,0.02637863,3326.5,3326.0,35.0]